[Event "*** SCC Grand Prix: Titled Tuesday Blitz"]
[Site "Chess.com"]
[Date "2020.09.29"]
[Round "3"]
[White "PlotnikovPavel"]
[Black "PLAYER_2006_M"]
[Result "0-1"]
[WhiteElo "2366"]
[BlackElo "2573"]
[TimeControl "180+1"]
[EndTime "10:25:52 PDT"]
[Termination "PLAYER_2006_M won by checkmate"]

1. e4 {[%clk 0:03:00.9]} 1... e5 {[%clk 0:02:58.2]} 2. Nf3 {[%clk 0:03:00.6]}
2... Nc6 {[%clk 0:02:58.8]} 3. Nc3 {[%clk 0:03:00.9]} 3... Nf6 {[%clk
0:02:58.2]} 4. d4 {[%clk 0:03:00.7]} 4... exd4 {[%clk 0:02:58.6]} 5. Nxd4 {[%clk
0:03:00.5]} 5... Bb4 {[%clk 0:02:58.6]} 6. Nxc6 {[%clk 0:03:00.4]} 6... bxc6
{[%clk 0:02:58.8]} 7. Bd3 {[%clk 0:03:00.4]} 7... d5 {[%clk 0:02:58.9]} 8. exd5
{[%clk 0:02:59.6]} 8... cxd5 {[%clk 0:02:59.8]} 9. O-O {[%clk 0:03:00]} 9... O-O
{[%clk 0:02:59.4]} 10. Bg5 {[%clk 0:02:58.7]} 10... c6 {[%clk 0:02:54.9]} 11.
Qf3 {[%clk 0:02:58.6]} 11... h6 {[%clk 0:02:54.7]} 12. Bxf6 {[%clk 0:02:57.8]}
12... Qxf6 {[%clk 0:02:55.6]} 13. Qxf6 {[%clk 0:02:58.3]} 13... gxf6 {[%clk
0:02:56.5]} 14. Ne2 {[%clk 0:02:58.4]} 14... Rb8 {[%clk 0:02:56.1]} 15. c3
{[%clk 0:02:55.1]} 15... Bd6 {[%clk 0:02:54.6]} 16. b4 {[%clk 0:02:52.8]} 16...
Be6 {[%clk 0:02:44.8]} 17. Nd4 {[%clk 0:02:40.7]} 17... Rbc8 {[%clk 0:02:41.1]}
18. Ba6 {[%clk 0:02:39.8]} 18... Rc7 {[%clk 0:02:40.7]} 19. Rae1 {[%clk
0:02:39]} 19... Re8 {[%clk 0:02:39.7]} 20. Nf5 {[%clk 0:02:36.2]} 20... Be5
{[%clk 0:02:35.9]} 21. Nxh6+ {[%clk 0:02:29.2]} 21... Kg7 {[%clk 0:02:36]} 22.
f4 {[%clk 0:02:29.6]} 22... Bxc3 {[%clk 0:02:23.5]} 23. Nf5+ {[%clk 0:02:29.4]}
23... Kf8 {[%clk 0:02:23.3]} 24. Nd6 {[%clk 0:02:29]} 24... Rd8 {[%clk
0:02:11.4]} 25. Nb7 {[%clk 0:02:28.7]} 25... Rb8 {[%clk 0:01:43.7]} 26. Nc5
{[%clk 0:02:27.9]} 26... Bxe1 {[%clk 0:01:43.7]} 27. Rxe1 {[%clk 0:02:23.6]}
27... Bf5 {[%clk 0:01:38]} 28. a3 {[%clk 0:02:15.8]} 28... Re7 {[%clk
0:01:37.4]} 29. Rc1 {[%clk 0:02:12.4]} 29... Re3 {[%clk 0:01:34.8]} 30. Bb7
{[%clk 0:02:05.9]} 30... Rxa3 {[%clk 0:01:29.6]} 31. Bxc6 {[%clk 0:02:05.4]}
31... d4 {[%clk 0:01:29.8]} 32. Bd7 {[%clk 0:02:04.2]} 32... Rc3 {[%clk
0:01:00.9]} 33. Rxc3 {[%clk 0:01:58.9]} 33... dxc3 {[%clk 0:01:01.8]} 34. Bxf5
{[%clk 0:01:59.4]} 34... Rxb4 {[%clk 0:01:02.7]} 35. Kf2 {[%clk 0:01:55.7]}
35... Rxf4+ {[%clk 0:01:02.2]} 36. Ke3 {[%clk 0:01:56.2]} 36... Rxf5 {[%clk
0:01:03.1]} 37. Nb3 {[%clk 0:01:56.5]} 37... Rb5 {[%clk 0:01:02.4]} 38. Nc1
{[%clk 0:01:55.5]} 38... c2 {[%clk 0:01:02.1]} 39. Kd2 {[%clk 0:01:55.4]} 39...
Rc5 {[%clk 0:01:02.5]} 40. Nb3 {[%clk 0:01:55.5]} 40... Rc8 {[%clk 0:01:02.1]}
41. Nc1 {[%clk 0:01:54]} 41... Kg7 {[%clk 0:01:02.8]} 42. Nb3 {[%clk 0:01:53.7]}
42... f5 {[%clk 0:01:03.7]} 43. Nc1 {[%clk 0:01:53.9]} 43... Kf6 {[%clk
0:01:04.3]} 44. Nb3 {[%clk 0:01:54.5]} 44... Kg5 {[%clk 0:01:04.9]} 45. Nc1
{[%clk 0:01:55.4]} 45... a5 {[%clk 0:01:05.8]} 46. Nb3 {[%clk 0:01:56.3]} 46...
a4 {[%clk 0:01:06.5]} 47. Nc1 {[%clk 0:01:57.2]} 47... f4 {[%clk 0:01:06.3]} 48.
Nd3 {[%clk 0:01:58.1]} 48... f5 {[%clk 0:01:06.6]} 49. Nc1 {[%clk 0:01:57.6]}
49... f3 {[%clk 0:01:05.5]} 50. gxf3 {[%clk 0:01:57]} 50... Kf4 {[%clk
0:01:06.4]} 51. Nd3+ {[%clk 0:01:55.6]} 51... Kxf3 {[%clk 0:01:06.5]} 52. Nc1
{[%clk 0:01:55.7]} 52... a3 {[%clk 0:01:06.3]} 53. Nd3 {[%clk 0:01:56.4]} 53...
a2 {[%clk 0:01:06.1]} 54. Nc1 {[%clk 0:01:57.3]} 54... a1=Q {[%clk 0:01:06.2]}
55. Nb3 {[%clk 0:01:57.2]} 55... Qd1# {[%clk 0:01:05.5]} 0-1

[Event "*** SCC Grand Prix: Titled Tuesday Blitz"]
[Site "Chess.com"]
[Date "2020.09.29"]
[Round "3"]
[White "anon102030"]
[Black "juancruzarias"]
[Result "1-0"]
[WhiteElo "2748"]
[BlackElo "2510"]
[TimeControl "180+1"]
[EndTime "10:25:53 PDT"]
[Termination "anon102030 won by resignation"]

1. e4 {[%clk 0:02:56.6]} 1... e6 {[%clk 0:03:00.3]} 2. d3 {[%clk 0:02:55.7]}
2... d5 {[%clk 0:03:00.6]} 3. Nd2 {[%clk 0:02:54.9]} 3... c5 {[%clk 0:03:00.5]}
4. g3 {[%clk 0:02:54.7]} 4... Nc6 {[%clk 0:03:01]} 5. Bg2 {[%clk 0:02:53.7]}
5... g6 {[%clk 0:03:01.5]} 6. Ngf3 {[%clk 0:02:52.2]} 6... Bg7 {[%clk 0:03:02]}
7. O-O {[%clk 0:02:50.4]} 7... Nge7 {[%clk 0:03:02.5]} 8. Re1 {[%clk 0:02:46.3]}
8... O-O {[%clk 0:02:58.6]} 9. Rb1 {[%clk 0:02:45.1]} 9... Qc7 {[%clk
0:02:51.2]} 10. exd5 {[%clk 0:02:42.1]} 10... Nxd5 {[%clk 0:02:50.8]} 11. Ne4
{[%clk 0:02:36.4]} 11... b5 {[%clk 0:02:44]} 12. Nxc5 {[%clk 0:02:32.2]} 12...
b4 {[%clk 0:02:37.6]} 13. Bd2 {[%clk 0:02:23.1]} 13... a5 {[%clk 0:02:37.9]} 14.
Ne4 {[%clk 0:02:13.9]} 14... Ba6 {[%clk 0:02:36.2]} 15. Qc1 {[%clk 0:01:59.8]}
15... Rfc8 {[%clk 0:02:35.6]} 16. Bh6 {[%clk 0:01:58.1]} 16... Bh8 {[%clk
0:02:35.6]} 17. Qd2 {[%clk 0:01:51]} 17... Nd4 {[%clk 0:02:34]} 18. Nxd4 {[%clk
0:01:48.4]} 18... Bxd4 {[%clk 0:02:34.9]} 19. Re2 {[%clk 0:01:40.5]} 19... a4
{[%clk 0:02:34.7]} 20. Qg5 {[%clk 0:01:32]} 20... Qe5 {[%clk 0:02:21.6]} 21.
Qxe5 {[%clk 0:01:27.6]} 21... Bxe5 {[%clk 0:02:22.5]} 22. Ng5 {[%clk 0:01:22.5]}
22... Bf6 {[%clk 0:02:19.8]} 23. Nxe6 {[%clk 0:01:19.3]} 23... fxe6 {[%clk
0:02:02.9]} 24. Rxe6 {[%clk 0:01:20.2]} 24... Bb7 {[%clk 0:02:03]} 25. Rxf6
{[%clk 0:01:15.2]} 25... Rxc2 {[%clk 0:02:01.8]} 26. Rd6 {[%clk 0:01:08.9]}
26... Rc5 {[%clk 0:01:54.3]} 27. d4 {[%clk 0:01:06.8]} 27... Rb5 {[%clk
0:01:53.7]} 28. Rc1 {[%clk 0:00:58.5]} 28... Re8 {[%clk 0:01:53.1]} 29. Rd7
{[%clk 0:00:52.6]} 29... Ba8 {[%clk 0:01:44.3]} 30. Rg7+ {[%clk 0:00:48.6]}
30... Kh8 {[%clk 0:01:44.3]} 31. Ra7 {[%clk 0:00:49.5]} 31... Nb6 {[%clk
0:01:38.8]} 32. Rcc7 {[%clk 0:00:37.1]} 1-0

[Event "*** SCC Grand Prix: Titled Tuesday Blitz"]
[Site "Chess.com"]
[Date "2020.09.29"]
[Round "3"]
[White "northridgehawk"]
[Black "DarZay"]
[Result "0-1"]
[WhiteElo "2311"]
[BlackElo "2081"]
[TimeControl "180+1"]
[EndTime "10:25:55 PDT"]
[Termination "DarZay won by checkmate"]

1. e4 {[%clk 0:02:57.5]} 1... c5 {[%clk 0:02:59.9]} 2. Nf3 {[%clk 0:02:57.1]}
2... d6 {[%clk 0:02:53.9]} 3. d4 {[%clk 0:02:56.3]} 3... cxd4 {[%clk 0:02:53.8]}
4. Nxd4 {[%clk 0:02:57.2]} 4... Nf6 {[%clk 0:02:53.7]} 5. Nc3 {[%clk 0:02:57.8]}
5... Nc6 {[%clk 0:02:53.9]} 6. f3 {[%clk 0:02:57.3]} 6... Bd7 {[%clk 0:02:47.7]}
7. Be3 {[%clk 0:02:56.8]} 7... e5 {[%clk 0:02:44.6]} 8. Nb3 {[%clk 0:02:55.7]}
8... Be7 {[%clk 0:02:40.4]} 9. Qd2 {[%clk 0:02:55.3]} 9... O-O {[%clk
0:02:37.6]} 10. O-O-O {[%clk 0:02:55.8]} 10... a5 {[%clk 0:02:32]} 11. Bb5
{[%clk 0:02:55]} 11... Nb4 {[%clk 0:02:25.4]} 12. a4 {[%clk 0:02:48.6]} 12...
Rc8 {[%clk 0:02:20.3]} 13. Kb1 {[%clk 0:02:42]} 13... Bxb5 {[%clk 0:02:10.6]}
14. axb5 {[%clk 0:02:40.2]} 14... a4 {[%clk 0:02:04.9]} 15. Nxa4 {[%clk
0:02:39.1]} 15... Nxc2 {[%clk 0:02:04.4]} 16. Bb6 {[%clk 0:02:34.5]} 16... Qd7
{[%clk 0:02:01.9]} 17. Qe2 {[%clk 0:02:28.2]} 17... Qe6 {[%clk 0:01:50.5]} 18.
Rd3 {[%clk 0:02:22]} 18... Nb4 {[%clk 0:01:49.4]} 19. Re3 {[%clk 0:02:09.6]}
19... Rc2 {[%clk 0:01:47.5]} 20. Qxc2 {[%clk 0:02:08.9]} 20... Nxc2 {[%clk
0:01:46.9]} 21. Kxc2 {[%clk 0:02:09.8]} 21... Rc8+ {[%clk 0:01:46.1]} 22. Nc3
{[%clk 0:02:09.2]} 22... d5 {[%clk 0:01:41.2]} 23. exd5 {[%clk 0:02:08.4]} 23...
Qxb6 {[%clk 0:01:39.7]} 24. Rxe5 {[%clk 0:02:05.7]} 24... Bd6 {[%clk 0:01:35.1]}
25. Re2 {[%clk 0:02:04.3]} 25... Nxd5 {[%clk 0:01:34.9]} 26. Rhe1 {[%clk
0:02:02.2]} 26... Nxc3 {[%clk 0:01:29.3]} 27. bxc3 {[%clk 0:02:01.3]} 27... Qxb5
{[%clk 0:01:26.6]} 28. Rd2 {[%clk 0:01:49.2]} 28... Bb4 {[%clk 0:01:25.2]} 29.
Re3 {[%clk 0:01:48.2]} 29... Qc4 {[%clk 0:01:20.9]} 30. Rdd3 {[%clk 0:01:40.7]}
30... g6 {[%clk 0:01:20.4]} 31. Kb2 {[%clk 0:01:37.3]} 31... Ra8 {[%clk
0:01:19.7]} 32. cxb4 {[%clk 0:01:36.6]} 32... Qxb4 {[%clk 0:01:16.4]} 33. Rc3
{[%clk 0:01:30.7]} 33... Qa3+ {[%clk 0:01:14.9]} 34. Kc2 {[%clk 0:01:30.1]}
34... Qa2+ {[%clk 0:01:14.9]} 35. Kd3 {[%clk 0:01:30.1]} 35... Rd8+ {[%clk
0:01:14.1]} 36. Ke4 {[%clk 0:01:29]} 36... Qa4+ {[%clk 0:01:08.6]} 37. Ke5
{[%clk 0:01:23.5]} 37... Kg7 {[%clk 0:00:55.4]} 38. Nc5 {[%clk 0:01:17.4]} 38...
f6+ {[%clk 0:00:53.9]} 39. Ke6 {[%clk 0:01:13.3]} 39... Qe8# {[%clk 0:00:54.1]}
0-1

[Event "*** SCC Grand Prix: Titled Tuesday Blitz"]
[Site "Chess.com"]
[Date "2020.09.29"]
[Round "3"]
[White "Miss_JJ20"]
[Black "Quiet_Desperation"]
[Result "1-0"]
[WhiteElo "2457"]
[BlackElo "2013"]
[TimeControl "180+1"]
[EndTime "10:25:57 PDT"]
[Termination "Miss_JJ20 won by resignation"]

1. d4 {[%clk 0:03:00.9]} 1... d5 {[%clk 0:02:58.8]} 2. c4 {[%clk 0:02:55.3]}
2... c6 {[%clk 0:02:58.5]} 3. cxd5 {[%clk 0:02:55.4]} 3... cxd5 {[%clk
0:02:57.9]} 4. Nc3 {[%clk 0:02:55]} 4... Nf6 {[%clk 0:02:38.8]} 5. Bf4 {[%clk
0:02:49.7]} 5... Nc6 {[%clk 0:02:38.5]} 6. e3 {[%clk 0:02:49.7]} 6... Bf5 {[%clk
0:02:38.1]} 7. Nf3 {[%clk 0:02:48.2]} 7... e6 {[%clk 0:02:38.5]} 8. Qb3 {[%clk
0:02:47.4]} 8... Bb4 {[%clk 0:01:53.8]} 9. Ne5 {[%clk 0:02:03.5]} 9... Qa5
{[%clk 0:01:28.6]} 10. Be2 {[%clk 0:01:33.7]} 10... Ne4 {[%clk 0:01:15.7]} 11.
O-O {[%clk 0:01:23.7]} 11... O-O {[%clk 0:01:15.6]} 12. Nxe4 {[%clk 0:01:15.3]}
12... Bxe4 {[%clk 0:01:05.4]} 13. a3 {[%clk 0:01:15.2]} 13... Be7 {[%clk
0:00:48.5]} 14. Qxb7 {[%clk 0:01:14.8]} 14... Nxe5 {[%clk 0:00:48.5]} 15. Bxe5
{[%clk 0:01:13.9]} 15... Rfe8 {[%clk 0:00:44.5]} 16. Rac1 {[%clk 0:01:09.5]}
16... Qd2 {[%clk 0:00:41.5]} 17. Bb5 {[%clk 0:00:50.6]} 17... Bg5 {[%clk
0:00:36.4]} 18. Bxe8 {[%clk 0:00:44.2]} 18... Rxe8 {[%clk 0:00:36.2]} 19. Rc8
{[%clk 0:00:42.2]} 1-0

[Event "*** SCC Grand Prix: Titled Tuesday Blitz"]
[Site "Chess.com"]
[Date "2020.09.29"]
[Round "3"]
[White "antoszu"]
[Black "Orest_Vovk"]
[Result "1-0"]
[WhiteElo "2606"]
[BlackElo "2394"]
[TimeControl "180+1"]
[EndTime "10:26:15 PDT"]
[Termination "antoszu won by resignation"]

1. e4 {[%clk 0:03:00.9]} 1... g5 {[%clk 0:02:58.6]} 2. d4 {[%clk 0:02:59.2]}
2... g4 {[%clk 0:02:58.2]} 3. Qxg4 {[%clk 0:02:56.7]} 3... d5 {[%clk 0:02:57.8]}
4. Qf3 {[%clk 0:02:57.1]} 4... dxe4 {[%clk 0:02:57.9]} 5. Qxe4 {[%clk 0:02:58]}
5... Nf6 {[%clk 0:02:58.4]} 6. Qh4 {[%clk 0:02:57.2]} 6... Rg8 {[%clk
0:02:58.4]} 7. h3 {[%clk 0:02:53.4]} 7... Nc6 {[%clk 0:02:56.6]} 8. c3 {[%clk
0:02:52.9]} 8... Qd5 {[%clk 0:02:54.7]} 9. Nf3 {[%clk 0:02:44]} 9... Bf5 {[%clk
0:02:51]} 10. Qf4 {[%clk 0:02:24.3]} 10... O-O-O {[%clk 0:02:45.3]} 11. Nbd2
{[%clk 0:02:22.7]} 11... e6 {[%clk 0:02:37.3]} 12. Bc4 {[%clk 0:02:19.7]} 12...
Qd7 {[%clk 0:02:32.3]} 13. g4 {[%clk 0:02:17.5]} 13... Bd6 {[%clk 0:02:19.4]}
14. Ne5 {[%clk 0:02:05.8]} 14... Bxe5 {[%clk 0:02:12.2]} 15. dxe5 {[%clk
0:02:06.7]} 15... Nd5 {[%clk 0:02:10.4]} 16. Qg3 {[%clk 0:01:49.8]} 16... Bc2
{[%clk 0:02:04]} 17. Nf3 {[%clk 0:01:44.3]} 17... Nxc3 {[%clk 0:01:43.5]} 18.
O-O {[%clk 0:01:32]} 18... Ne4 {[%clk 0:01:41]} 19. Qf4 {[%clk 0:01:31.8]} 19...
h5 {[%clk 0:01:38.2]} 20. g5 {[%clk 0:01:18.6]} 20... Nd4 {[%clk 0:01:34.2]} 21.
h4 {[%clk 0:01:03.8]} 21... Qc6 {[%clk 0:01:16.7]} 22. Nxd4 {[%clk 0:00:51.4]}
22... Rxd4 {[%clk 0:01:08.3]} 23. Qxf7 {[%clk 0:00:51.1]} 23... Rdd8 {[%clk
0:00:33.1]} 24. Qxe6+ {[%clk 0:00:49.1]} 24... Qxe6 {[%clk 0:00:30.5]} 25. Bxe6+
{[%clk 0:00:50]} 25... Kb8 {[%clk 0:00:31.2]} 26. Bxg8 {[%clk 0:00:50]} 26...
Rxg8 {[%clk 0:00:30.8]} 27. Be3 {[%clk 0:00:50.1]} 1-0

[Event "*** SCC Grand Prix: Titled Tuesday Blitz"]
[Site "Chess.com"]
[Date "2020.09.29"]
[Round "3"]
[White "Alexander_Moskalenko"]
[Black "Skatchkov_V"]
[Result "1-0"]
[WhiteElo "2835"]
[BlackElo "2639"]
[TimeControl "180+1"]
[EndTime "10:26:16 PDT"]
[Termination "Alexander_Moskalenko won by resignation"]

1. c4 {[%clk 0:03:00.9]} 1... e5 {[%clk 0:02:59.4]} 2. Nc3 {[%clk 0:03:01.4]}
2... Nf6 {[%clk 0:02:59.5]} 3. Nf3 {[%clk 0:03:02]} 3... Nc6 {[%clk 0:02:58.5]}
4. d3 {[%clk 0:03:02.4]} 4... g6 {[%clk 0:02:55.8]} 5. g3 {[%clk 0:03:00.2]}
5... Bg7 {[%clk 0:02:55.8]} 6. Bg2 {[%clk 0:03:00.8]} 6... O-O {[%clk
0:02:55.4]} 7. O-O {[%clk 0:03:01.7]} 7... d5 {[%clk 0:02:41.6]} 8. cxd5 {[%clk
0:03:00.9]} 8... Nxd5 {[%clk 0:02:41.5]} 9. Nxe5 {[%clk 0:02:25.2]} 9... Nxc3
{[%clk 0:02:41.1]} 10. Nxc6 {[%clk 0:02:24.9]} 10... Nxd1 {[%clk 0:02:40.1]} 11.
Nxd8 {[%clk 0:02:23.7]} 11... Nxb2 {[%clk 0:02:39.7]} 12. Bxb2 {[%clk
0:02:14.3]} 12... Bxb2 {[%clk 0:02:34.5]} 13. Rab1 {[%clk 0:02:14.4]} 13... Rxd8
{[%clk 0:01:43.8]} 14. Rxb2 {[%clk 0:02:14.9]} 14... Rb8 {[%clk 0:01:43.8]} 15.
f4 {[%clk 0:02:14.6]} 15... b6 {[%clk 0:01:28]} 16. Rc1 {[%clk 0:02:15.5]} 16...
c5 {[%clk 0:01:27.9]} 17. Rxc5 {[%clk 0:02:10.4]} 17... Be6 {[%clk 0:01:26.8]}
18. Rcc2 {[%clk 0:02:09.8]} 18... Rd4 {[%clk 0:01:18.1]} 19. Kf2 {[%clk
0:02:09.8]} 19... Ra4 {[%clk 0:01:15.4]} 20. Bc6 {[%clk 0:02:06.9]} 20... Ra3
{[%clk 0:01:10.7]} 21. d4 {[%clk 0:02:07.3]} 21... Rd8 {[%clk 0:01:10.1]} 22.
Rd2 {[%clk 0:02:07.6]} 22... Bd5 {[%clk 0:01:09.1]} 23. Bxd5 {[%clk 0:02:04.5]}
23... Rxd5 {[%clk 0:01:10]} 24. e4 {[%clk 0:02:05.2]} 24... Rda5 {[%clk
0:01:08.5]} 25. d5 {[%clk 0:02:03.8]} 25... Kf8 {[%clk 0:01:08.5]} 26. d6 {[%clk
0:02:01.8]} 26... Ke8 {[%clk 0:01:08.5]} 27. Rbc2 {[%clk 0:02:02.3]} 27... Rc5
{[%clk 0:01:06.8]} 28. Rxc5 {[%clk 0:02:00.4]} 28... bxc5 {[%clk 0:01:07.7]} 29.
e5 {[%clk 0:01:53.5]} 29... Kd7 {[%clk 0:01:07.2]} 30. Rb2 {[%clk 0:01:51.3]}
30... Kc6 {[%clk 0:01:06.3]} 31. Ke2 {[%clk 0:01:49.6]} 31... c4 {[%clk
0:01:05.8]} 32. Rb8 {[%clk 0:01:46.4]} 32... Rxa2+ {[%clk 0:01:03.7]} 33. Ke3
{[%clk 0:01:46.9]} 33... Rxh2 {[%clk 0:00:39.2]} 34. Rc8+ {[%clk 0:01:46.7]}
34... Kd7 {[%clk 0:00:35.7]} 35. Rc7+ {[%clk 0:01:46.8]} 35... Kd8 {[%clk
0:00:34.3]} 36. Rxc4 {[%clk 0:01:46.4]} 36... Rg2 {[%clk 0:00:23]} 37. Kf3
{[%clk 0:01:46.4]} 37... Rb2 {[%clk 0:00:19.6]} 38. Rc7 {[%clk 0:01:46.3]} 38...
Rb3+ {[%clk 0:00:19.8]} 39. Ke4 {[%clk 0:01:46.8]} 39... a5 {[%clk 0:00:18.9]}
40. Rxf7 {[%clk 0:01:46.2]} 40... a4 {[%clk 0:00:18.3]} 41. Rxh7 {[%clk
0:01:46.3]} 41... a3 {[%clk 0:00:17.7]} 42. Ra7 {[%clk 0:01:46.9]} 42... Rxg3
{[%clk 0:00:15.9]} 43. e6 {[%clk 0:01:47.2]} 43... Kc8 {[%clk 0:00:14.5]} 44. e7
{[%clk 0:01:46.6]} 1-0

[Event "*** SCC Grand Prix: Titled Tuesday Blitz"]
[Site "Chess.com"]
[Date "2020.09.29"]
[Round "3"]
[White "Dr-Bassem"]
[Black "SergeyShtyka"]
[Result "1-0"]
[WhiteElo "2758"]
[BlackElo "2425"]
[TimeControl "180+1"]
[EndTime "10:26:18 PDT"]
[Termination "Dr-Bassem won by resignation"]

1. e4 {[%clk 0:03:00.9]} 1... c5 {[%clk 0:02:51.7]} 2. Nf3 {[%clk 0:03:01]} 2...
Nc6 {[%clk 0:02:50.3]} 3. g3 {[%clk 0:02:57.9]} 3... g6 {[%clk 0:02:44.4]} 4.
Bg2 {[%clk 0:02:58.1]} 4... Bg7 {[%clk 0:02:44.9]} 5. O-O {[%clk 0:02:58.6]}
5... e6 {[%clk 0:02:45.2]} 6. c3 {[%clk 0:02:58.7]} 6... Nge7 {[%clk 0:02:45.3]}
7. d4 {[%clk 0:02:52.3]} 7... cxd4 {[%clk 0:02:45.4]} 8. cxd4 {[%clk 0:02:53.2]}
8... d5 {[%clk 0:02:43.7]} 9. e5 {[%clk 0:02:52.5]} 9... O-O {[%clk 0:02:43.3]}
10. Nc3 {[%clk 0:02:53.1]} 10... a6 {[%clk 0:02:19.9]} 11. Re1 {[%clk
0:02:52.8]} 11... b5 {[%clk 0:02:19.8]} 12. h4 {[%clk 0:02:52.6]} 12... Nf5
{[%clk 0:02:10.4]} 13. Bf4 {[%clk 0:02:23.2]} 13... Qb6 {[%clk 0:02:03.4]} 14.
Ne2 {[%clk 0:02:21.9]} 14... Bb7 {[%clk 0:01:54]} 15. g4 {[%clk 0:02:20.7]}
15... Nfe7 {[%clk 0:01:53.7]} 16. h5 {[%clk 0:02:20.5]} 16... Rac8 {[%clk
0:01:51.3]} 17. h6 {[%clk 0:02:19]} 17... Bh8 {[%clk 0:01:51]} 18. Bg5 {[%clk
0:02:19.6]} 18... Rfe8 {[%clk 0:01:43.4]} 19. Qd2 {[%clk 0:02:16.9]} 19... Nb8
{[%clk 0:00:50.9]} 20. Rac1 {[%clk 0:01:59.2]} 20... Nd7 {[%clk 0:00:50.9]} 21.
Rxc8 {[%clk 0:01:52.9]} 21... Nxc8 {[%clk 0:00:47.2]} 22. Rc1 {[%clk 0:01:52.6]}
22... b4 {[%clk 0:00:43.6]} 23. Qc2 {[%clk 0:01:22.9]} 23... f6 {[%clk
0:00:39.6]} 24. exf6 {[%clk 0:01:20.1]} 24... Bxf6 {[%clk 0:00:39.6]} 25. Qc7
{[%clk 0:01:10.4]} 25... Rd8 {[%clk 0:00:29.5]} 26. Bxf6 {[%clk 0:01:08.1]}
26... Qxc7 {[%clk 0:00:29.1]} 27. Rxc7 {[%clk 0:01:06.7]} 27... Nxf6 {[%clk
0:00:29.2]} 28. Rxb7 {[%clk 0:01:02.2]} 28... Nxg4 {[%clk 0:00:29.6]} 29. Rg7+
{[%clk 0:01:00.5]} 29... Kh8 {[%clk 0:00:29.3]} 30. Ng5 {[%clk 0:01:00.1]} 30...
Nxh6 {[%clk 0:00:28.6]} 31. Rxh7+ {[%clk 0:01:00.1]} 1-0

[Event "*** SCC Grand Prix: Titled Tuesday Blitz"]
[Site "Chess.com"]
[Date "2020.09.29"]
[Round "3"]
[White "ApacheSVD"]
[Black "lelya96"]
[Result "1-0"]
[WhiteElo "2416"]
[BlackElo "2210"]
[TimeControl "180+1"]
[EndTime "10:26:19 PDT"]
[Termination "ApacheSVD won by resignation"]

1. e4 {[%clk 0:03:00.9]} 1... e5 {[%clk 0:02:58.4]} 2. Nf3 {[%clk 0:02:59]} 2...
Nc6 {[%clk 0:02:58.2]} 3. Bc4 {[%clk 0:02:58.5]} 3... Nf6 {[%clk 0:02:57.5]} 4.
d3 {[%clk 0:02:57.7]} 4... Be7 {[%clk 0:02:56.6]} 5. O-O {[%clk 0:02:57]} 5...
O-O {[%clk 0:02:56]} 6. Re1 {[%clk 0:02:57.7]} 6... d6 {[%clk 0:02:52.2]} 7. a4
{[%clk 0:02:57.6]} 7... a5 {[%clk 0:02:50.4]} 8. Nc3 {[%clk 0:02:55.3]} 8... Be6
{[%clk 0:02:46.4]} 9. Nd5 {[%clk 0:02:55.6]} 9... Bxd5 {[%clk 0:02:43.1]} 10.
exd5 {[%clk 0:02:54.8]} 10... Nb8 {[%clk 0:02:42.4]} 11. d4 {[%clk 0:02:47.8]}
11... c6 {[%clk 0:01:57.9]} 12. dxe5 {[%clk 0:02:42.7]} 12... dxe5 {[%clk
0:01:57.1]} 13. Nxe5 {[%clk 0:02:37.3]} 13... Nxd5 {[%clk 0:01:44.3]} 14. Bxd5
{[%clk 0:02:36.4]} 14... cxd5 {[%clk 0:01:43.9]} 15. c3 {[%clk 0:02:33.4]} 15...
Nc6 {[%clk 0:01:42.1]} 16. Qe2 {[%clk 0:02:27.3]} 16... Bc5 {[%clk 0:01:39.4]}
17. Be3 {[%clk 0:02:09.7]} 17... Bxe3 {[%clk 0:01:27.5]} 18. Qxe3 {[%clk
0:02:10.6]} 18... Re8 {[%clk 0:01:27.4]} 19. Nxc6 {[%clk 0:02:11.1]} 19... bxc6
{[%clk 0:01:26]} 20. Qc5 {[%clk 0:02:08.3]} 20... Qc7 {[%clk 0:01:22.8]} 21. g3
{[%clk 0:02:05.2]} 21... h6 {[%clk 0:01:17.8]} 22. Kg2 {[%clk 0:02:04]} 22...
Rac8 {[%clk 0:01:09.6]} 23. Rad1 {[%clk 0:02:02.3]} 23... Qb7 {[%clk 0:00:34.3]}
24. Rxe8+ {[%clk 0:01:39.8]} 24... Rxe8 {[%clk 0:00:33.3]} 25. Rd2 {[%clk
0:01:40.7]} 25... Ra8 {[%clk 0:00:15.2]} 26. Re2 {[%clk 0:01:38.8]} 26... Rc8
{[%clk 0:00:04.2]} 27. Qxa5 {[%clk 0:01:16.4]} 27... Qxb2 {[%clk 0:00:03.2]} 28.
Rxb2 {[%clk 0:01:14.8]} 1-0

[Event "*** SCC Grand Prix: Titled Tuesday Blitz"]
[Site "Chess.com"]
[Date "2020.09.29"]
[Round "3"]
[White "Nastya_Rakhmangulova"]
[Black "Infernal_XaM"]
[Result "0-1"]
[WhiteElo "2443"]
[BlackElo "2844"]
[TimeControl "180+1"]
[EndTime "10:26:20 PDT"]
[Termination "Infernal_XaM won on time"]

1. e4 {[%clk 0:02:57.9]} 1... c5 {[%clk 0:02:56.6]} 2. Nf3 {[%clk 0:02:57.5]}
2... d6 {[%clk 0:02:56.6]} 3. d4 {[%clk 0:02:57.6]} 3... cxd4 {[%clk 0:02:55.8]}
4. Nxd4 {[%clk 0:02:58.5]} 4... Nf6 {[%clk 0:02:56.3]} 5. Nc3 {[%clk 0:02:59]}
5... Nc6 {[%clk 0:02:56]} 6. Bg5 {[%clk 0:02:58.2]} 6... Qa5 {[%clk 0:02:54.8]}
7. Bxf6 {[%clk 0:02:45]} 7... gxf6 {[%clk 0:02:54.5]} 8. Nb3 {[%clk 0:02:43]}
8... Qd8 {[%clk 0:02:52.5]} 9. Qd2 {[%clk 0:02:38.7]} 9... h5 {[%clk 0:02:51.9]}
10. f4 {[%clk 0:02:39]} 10... h4 {[%clk 0:02:50]} 11. O-O-O {[%clk 0:02:31.9]}
11... Bd7 {[%clk 0:02:43]} 12. Kb1 {[%clk 0:02:31.7]} 12... Rc8 {[%clk
0:02:34.3]} 13. a3 {[%clk 0:02:18.8]} 13... a6 {[%clk 0:02:29.4]} 14. Bd3 {[%clk
0:02:14.3]} 14... b5 {[%clk 0:02:29.4]} 15. Nd5 {[%clk 0:01:57.4]} 15... e6
{[%clk 0:02:25.5]} 16. Nb4 {[%clk 0:01:57.3]} 16... Nb8 {[%clk 0:02:17.1]} 17.
Rhe1 {[%clk 0:01:27.8]} 17... Qb6 {[%clk 0:02:13.4]} 18. f5 {[%clk 0:00:40.1]}
18... Bh6 {[%clk 0:02:10.1]} 19. Qe2 {[%clk 0:00:36.1]} 19... Bf4 {[%clk
0:02:09.2]} 20. fxe6 {[%clk 0:00:35]} 20... fxe6 {[%clk 0:02:08.9]} 21. Qg4
{[%clk 0:00:33.3]} 21... Be5 {[%clk 0:02:04.9]} 22. Qg6+ {[%clk 0:00:30.7]}
22... Kd8 {[%clk 0:02:00.5]} 23. Be2 {[%clk 0:00:10.9]} 23... Kc7 {[%clk
0:01:59]} 24. Nd3 {[%clk 0:00:10.3]} 24... Rcg8 {[%clk 0:01:57.7]} 25. Qf7
{[%clk 0:00:10.2]} 25... Rf8 {[%clk 0:01:55.9]} 26. Qg6 {[%clk 0:00:07.3]} 26...
Bxh2 {[%clk 0:01:55.8]} 27. e5 {[%clk 0:00:06.7]} 27... fxe5 {[%clk 0:01:50.1]}
28. Bf3 {[%clk 0:00:07]} 28... Rhg8 {[%clk 0:01:47.5]} 29. Qh7 {[%clk 0:00:07]}
29... Bg3 {[%clk 0:01:46.1]} 30. Re2 {[%clk 0:00:05.8]} 30... Kc8 {[%clk
0:01:45.9]} 31. Ne1 {[%clk 0:00:05.8]} 31... d5 {[%clk 0:01:38.5]} 32. Nc1
{[%clk 0:00:02.8]} 32... Bc6 {[%clk 0:01:37.4]} 33. Ncd3 {[%clk 0:00:02.7]}
33... e4 {[%clk 0:01:33.5]} 34. Nb4 {[%clk 0:00:02.2]} 34... Qc7 {[%clk
0:01:32.8]} 35. Bh5 {[%clk 0:00:01.5]} 35... Qxh7 {[%clk 0:01:32.3]} 0-1